bitfinex/quotes_ETHUSD_20241116
["timestamp","ask_amount","ask_price","bid_price","bid_amount"]
[1731776168286,3.21165561,3146.8,3146.2,3.72843]
[1731776168766,3.17795,3146.7,3146.0,0.55]
[1731776168967,3.21166088,3146.7,3146.0,0.55]
[1731776169589,3.21166088,3146.7,3146.2,0.55]
[1731776171304,3.21166088,3146.7,3146.0,0.55]
[1731776171511,3.21166088,3146.7,3146.0,4.1331977]
[1731776171964,3.21166088,3146.7,3146.1,3.17851]
[1731776172169,3.21166088,3146.7,3146.2,0.55]
[1731776172797,3.17824,3146.4,3146.2,1.0]
[1731776173231,0.03356737,3146.3,3146.2,1.0]
[1731776173811,3.21189737,3146.3,3146.2,1.0]
[1731776178286,0.03356737,3146.3,3146.2,1.0]
[1731776178486,3.21189737,3146.3,3146.2,1.0]
[1731776178704,3.17833,3146.3,3146.2,1.0]
[1731776178911,3.21182376,3146.3,3146.2,1.0]
[1731776179386,0.03349376,3146.3,3146.2,1.0]
[1731776179787,3.21182376,3146.3,3146.2,1.0]
[1731776180339,6.91982548,3146.3,3146.2,1.0]
[1731776180713,9.91982548,3146.3,3146.2,1.0]
[1731776192452,3.21182376,3146.3,3146.2,1.0]
[1731776195715,0.03349376,3146.3,3146.2,1.0]
[1731776195918,3.17817,3146.5,3146.2,1.0]
[1731776196121,0.03322932,3146.4,3146.2,1.0]
[1731776196863,3.21145932,3146.4,3146.2,1.0]
[1731776199568,3.17833,3146.3,3146.2,1.0]
[1731776199862,3.21045443,3146.3,3146.2,1.0]
[1731776200655,6.91831521,3146.3,3146.2,1.0]
[1731776202081,9.91831521,3146.3,3146.2,1.0]
[1731776206138,3.21045443,3146.3,3146.2,1.0]
[1731776206291,0.03212443,3146.3,3146.2,1.0]
[1731776206494,3.21045443,3146.3,3146.2,1.0]
[1731776206816,3.20940469,3146.3,3146.2,1.0]
[1731776208016,0.03107469,3146.3,3146.2,1.0]
[1731776208177,3.17817,3146.5,3146.2,1.0]
[1731776208389,0.03107469,3146.3,3146.2,1.0]
[1731776208594,3.17817,3146.5,3146.2,1.0]
[1731776208804,0.03107469,3146.3,3146.2,1.0]
[1731776209005,3.17833,3146.3,3146.2,1.0]
[1731776209218,3.20940469,3146.3,3146.2,1.0]
[1731776209809,0.03107469,3146.3,3146.2,1.0]
[1731776210240,0.0311238,3146.3,3146.2,1.0]
[1731776210533,3.17817,3146.5,3146.2,1.0]
[1731776210692,0.0311238,3146.3,3146.2,1.0]
[1731776210898,3.17817,3146.5,3146.2,1.0]
[1731776211102,0.0311238,3146.3,3146.2,1.0]
[1731776211337,3.17817,3146.5,3146.2,1.0]
[1731776211538,0.0311238,3146.3,3146.2,1.0]
[1731776211725,3.17817,3146.5,3146.2,1.0]
[1731776211921,0.03112744,3146.3,3146.2,1.0]
[1731776212118,3.17817,3146.5,3146.2,1.0]
[1731776212333,0.03112744,3146.3,3146.2,1.0]
[1731776212848,3.06899234,3146.6,3146.2,1.0]
[1731776212998,0.03112744,3146.3,3146.2,1.55]
[1731776213204,3.17794,3146.7,3146.2,1.55]
[1731776213432,0.03113289,3146.3,3146.2,1.55]
[1731776213747,3.17794,3146.7,3146.2,1.55]
[1731776213933,0.03113289,3146.3,3146.2,1.55]
[1731776214104,3.17794,3146.7,3146.2,1.55]
[1731776214304,0.03113289,3146.3,3146.2,1.55]
[1731776214524,3.17794,3146.7,3146.2,1.55]
[1731776214739,0.0311338,3146.3,3146.2,1.55]
[1731776214930,3.17794,3146.7,3146.2,1.55]
[1731776215131,0.0311338,3146.3,3146.2,1.55]
[1731776215330,6.24674234,3146.9,3146.2,1.55]
[1731776215528,6.24674234,3146.9,3146.2,4.72833]
[1731776215529,0.0311338,3146.3,3146.2,4.72833]
[1731776215732,3.17778,3146.9,3146.3,3.72829]
[1731776216322,3.17785,3146.8,3146.3,3.72829]
[1731776216523,3.17785,3146.8,3146.4,0.472829]
[1731776217748,3.1782,3146.5,3146.2,1.0]
[1731776218709,3.17833,3146.3,3146.2,1.0]
[1731776218910,6.24732234,3146.3,3146.2,1.0]
[1731776219105,9.24732234,3146.3,3146.2,1.0]
[1731776221892,6.24732234,3146.3,3146.2,1.0]
[1731776222148,3.06899234,3146.3,3146.2,1.0]
[1731776222352,11.91823,3146.4,3146.2,1.0]
[1731776222551,3.17823,3146.4,3146.2,1.0]
[1731776224257,6.24704234,3146.6,3146.2,1.0]
[1731776224782,3.17814,3146.5,3146.2,1.0]
[1731776226882,3.17825,3146.4,3146.2,1.0]
[1731776227388,3.17833,3146.3,3146.2,1.0]
[1731776228236,3.20954836,3146.3,3146.2,1.0]
[1731776230166,4.15522743,3146.3,3146.2,1.0]
[1731776230744,7.15522743,3146.3,3146.2,1.0]
[1731776233155,7.77662848,3146.3,3146.2,0.8133889]
[1731776233939,17.01349822,3146.3,3146.2,0.8133889]
[1731776234280,3.17972,3145.0,3144.4,3.49787]
[1731776234453,3.17946,3145.2,3144.5,3.18014]
[1731776234638,3.17946,3145.2,3144.6,3.18005]
[1731776234975,3.2102102,3145.1,3144.4,3.49788]
[1731776235281,3.2102102,3145.1,3144.3,3.18032]
[1731776235465,3.17978,3144.9,3144.4,0.318032]
[1731776235636,3.17978,3144.9,3144.5,0.55]
[1731776235842,0.03046313,3144.8,3144.5,0.55]
[1731776236039,0.03046313,3144.8,3144.4,0.318032]
[1731776236469,0.03046313,3144.8,3144.0,0.3177]
[1731776236470,6.24864234,3145.0,3144.3,3.18029]
[1731776236663,0.03041925,3144.7,3144.3,3.18029]
[1731776236989,3.17976,3144.9,3144.3,3.18029]
[1731776237143,0.03026443,3144.6,3144.1,6.18049]
[1731776237489,3.17995,3144.7,3144.2,0.55]
[1731776237634,0.03022965,3144.5,3144.4,0.55]
[1731776237838,3.17995,3144.7,3144.4,0.55]
[1731776238080,3.18015,3144.5,3143.6,3.18105]
[1731776238288,3.18044,3144.3,3143.6,3.18105]
[1731776238489,3.18044,3144.3,3143.6,0.318105]
[1731776238703,3.18064,3144.1,3143.4,3.18119]
[1731776238899,0.03011892,3144.2,3143.5,3.18108]
[1731776238900,3.21058892,3144.2,3143.5,3.18108]
[1731776239051,0.0300466,3144.0,3143.5,3.24469272]
[1731776239253,6.24930234,3144.4,3143.7,3.18089]
[1731776239496,0.0300118,3143.9,3143.8,0.06360969]
[1731776239798,3.18043,3144.3,3143.7,0.318098]
[1731776239993,0.0300118,3143.9,3143.8,0.55]
[1731776240164,3.18057,3144.1,3143.4,3.18125]
[1731776240366,3.18057,3144.1,3143.2,3.18143]
[1731776240576,0.0300466,3144.0,3143.5,3.18115]
[1731776241594,0.0300466,3144.0,3143.6,0.55]
[1731776241793,0.0300466,3144.0,3143.6,3.73106]
[1731776242102,6.36084,3144.3,3143.6,3.73106]
[1731776242348,0.0300118,3143.9,3143.8,0.55]
[1731776242470,3.18039,3144.3,3143.8,0.55]
[1731776242803,0.0300118,3143.9,3143.6,0.55]
[1731776242967,3.18047,3144.2,3143.6,3.73105]
[1731776243297,3.18106,3143.6,3143.1,3.18151]
[1731776243509,3.06899234,3143.8,3143.2,3.18146]
[1731776243510,6.24987234,3143.8,3143.2,3.18146]
[1731776243674,0.0298098,3143.5,3143.2,3.18146]
[1731776243875,6.24987234,3143.8,3143.2,3.18146]
[1731776244061,0.02977317,3143.4,3143.2,3.18146]
[1731776244257,9.43083234,3143.8,3143.0,6.36325]
[1731776244489,0.02973836,3143.3,3143.2,3.18145]
[1731776244690,3.06899234,3143.8,3143.2,3.73145]
[1731776244691,6.24993234,3143.8,3143.2,3.73145]
[1731776244899,3.18122,3143.5,3143.3,0.55]
[1731776245201,3.18126,3143.5,3142.9,3.73177]
[1731776245405,3.18126,3143.5,3142.9,4.104947]
[1731776245701,3.18099,3143.7,3143.1,0.55]
[1731776245858,3.18116,3143.5,3143.2,0.06362267]
[1731776246075,3.18107,3143.6,3143.1,0.61362306]
[1731776246512,0.63758015,3144.5,3144.0,3.18063]
[1731776246713,3.18007,3144.6,3144.0,3.18063]
[1731776246979,3.18007,3144.6,3144.0,0.55]
[1731776246980,3.1803,3144.4,3144.0,0.55]
[1731776247203,3.1803,3144.4,3143.7,3.18089]
[1731776247204,3.18047,3144.2,3143.7,0.55]
[1731776247375,3.18039,3144.3,3143.7,4.103989]
[1731776247575,3.1803,3144.4,3143.7,0.923099]
[1731776247781,3.18052,3144.2,3143.7,0.55]
[1731776247977,3.1803,3144.4,3143.0,0.01]
[1731776247978,3.18086,3143.8,3143.2,3.1814]
[1731776248198,3.18086,3143.8,3143.3,0.55]
[1731776248928,3.18074,3144.0,3143.3,3.7313]
[1731776249093,3.18074,3144.0,3143.4,0.06361825]
[1731776249297,0.63885266,3144.3,3143.7,3.18088]
[1731776249483,0.63885266,3144.3,3143.9,3.7307]
[1731776249685,0.63885266,3144.3,3143.9,0.55]
[1731776249994,0.63885266,3144.3,3143.8,0.55]
[1731776250179,0.63885266,3144.3,3143.5,0.55]
[1731776250380,0.63885266,3144.3,3144.0,0.55]
[1731776250891,0.63885266,3144.3,3144.0,3.24424679]
[1731776251313,0.63885266,3144.3,3144.1,0.55]
[1731776251484,0.63885266,3144.3,3143.3,3.19133]
[1731776251678,0.63885266,3144.3,3143.9,0.55]
[1731776252585,0.63885266,3144.3,3143.9,0.61360793]
[1731776253387,0.63885266,3144.3,3143.9,3.79427793]
[1731776253818,0.63885266,3144.3,3144.0,3.18063]
[1731776254642,0.63885266,3144.3,3144.1,3.73046]
[1731776254867,3.17965,3145.0,3144.2,3.73045]
[1731776255012,3.06899234,3145.1,3144.5,0.55]
[1731776255013,6.24863234,3145.1,3144.5,0.55]
[1731776255641,3.06899234,3145.1,3144.5,0.55]
[1731776255949,3.17929,3145.4,3144.6,3.17999]
[1731776255950,6.24828234,3145.4,3144.6,3.17999]
[1731776256247,3.17946,3145.2,3144.6,3.17999]
[1731776256551,3.17946,3145.2,3144.5,0.55]
[1731776256552,0.63581424,3145.2,3144.8,0.55]
[1731776256698,3.17919,3145.5,3144.9,3.17971]
[1731776256902,0.317919,3145.4,3144.9,3.17971]
[1731776257460,0.317919,3145.4,3144.8,0.55]
[1731776257461,3.38691134,3145.4,3144.8,0.55]
[1731776257903,6.56622134,3145.4,3144.8,0.55]
[1731776258100,0.03550283,3145.3,3144.8,3.72981]
[1731776258330,0.03550283,3145.3,3144.8,3.72984]
[1731776258501,0.03550283,3145.3,3144.8,0.55]
[1731776258698,0.03550283,3145.3,3145.2,0.55]
[1731776258936,3.06899234,3146.0,3145.4,3.17919]
[1731776259139,3.17881,3145.9,3145.2,3.79295473]
[1731776259437,3.1789,3145.8,3145.2,3.79300473]
[1731776259804,3.17881,3145.9,3145.3,3.17932]
[1731776260008,0.94263623,3145.9,3145.2,0.55]
[1731776260202,3.17915,3145.5,3145.0,3.72963]
[1731776260431,3.17894,3145.7,3145.0,3.72956]
[1731776260821,3.17894,3145.7,3145.0,0.55]
[1731776261017,3.17894,3145.7,3145.0,3.72964]
[1731776261255,6.24796234,3145.7,3145.0,0.55]
[1731776261568,3.17916,3145.5,3145.0,0.55]
[1731776262375,3.17916,3145.5,3145.0,3.72964]
[1731776263268,3.06899234,3145.7,3145.2,3.1794]
[1731776263474,0.63962562,3145.8,3145.3,3.49722]
[1731776263792,0.63962562,3145.8,3145.4,3.17918]
[1731776263943,3.06899234,3145.7,3145.0,0.55]
[1731776264142,3.17905,3145.6,3145.0,3.72963]
[1731776264390,3.17905,3145.6,3145.0,0.55]
[1731776264673,3.17925,3145.4,3145.0,0.55]
[1731776264873,3.17922,3145.5,3145.0,0.55]
[1731776265644,3.17905,3145.6,3145.0,0.55]
[1731776266576,3.17929,3145.4,3144.8,0.55]
[1731776266778,3.17951,3145.2,3144.6,0.55]
[1731776266984,3.17951,3145.2,3144.6,3.73005]
[1731776267292,3.06899234,3145.4,3144.6,0.55]
[1731776267472,3.17966,3145.0,3144.6,0.55]
[1731776267636,3.17966,3145.0,3144.5,0.55]
[1731776267842,3.17956,3145.1,3144.5,4.421147]
[1731776268695,3.17971,3145.0,3144.5,1.241057]
[1731776268861,3.17982,3144.9,3144.5,1.241057]
[1731776269296,3.17991,3144.8,3144.5,1.241057]
[1731776269506,3.17991,3144.8,3144.5,0.55]
[1731776269674,3.17991,3144.8,3144.3,0.55]
[1731776269877,3.17971,3145.0,3144.3,3.73035]
[1731776270060,3.17971,3145.0,3144.2,3.0]
[1731776270061,3.06899234,3145.4,3144.8,3.17982]
[1731776270358,3.17914,3145.5,3144.9,3.17967]
[1731776270557,3.17914,3145.5,3145.0,0.55]
[1731776272589,3.17908,3145.6,3144.8,0.55]
[1731776272801,0.62930904,3145.7,3145.2,0.55]
[1731776272968,3.17894,3145.7,3145.3,0.372951]
[1731776273170,3.17894,3145.7,3145.2,3.72944]
[1731776273886,3.17886,3145.8,3145.2,3.72944]
[1731776277078,3.06899234,3145.7,3145.1,3.72953]
[1731776277294,6.24794234,3145.7,3145.2,3.17942]
[1731776277810,3.06899234,3145.7,3145.1,0.55]
[1731776277974,0.62354387,3145.8,3145.3,3.17925]
[1731776278174,0.62354387,3145.8,3145.4,3.17923]
[1731776278907,0.62354387,3145.8,3145.5,3.17913]
[1731776279207,0.62354387,3145.8,3145.3,3.17933]
[1731776279407,0.62354387,3145.8,3145.4,0.55]
[1731776280479,0.62354387,3145.8,3145.7,3.17894]
[1731776280682,3.06899234,3146.3,3145.8,3.17879]
[1731776281001,3.17849,3146.2,3145.7,0.55]
[1731776281611,6.24733234,3146.3,3145.7,0.55]
[1731776281793,9.42575234,3146.3,3145.7,0.55]
[1731776282099,3.17844,3146.2,3145.7,0.55]
[1731776283468,3.17855,3146.1,3145.7,0.55]
[1731776283679,3.17855,3146.1,3145.5,3.72914]
[1731776283884,3.1787,3146.0,3145.5,0.55]
[1731776284190,3.17844,3146.2,3145.5,0.55]
[1731776284390,6.35697,3146.2,3145.7,0.55]
[1731776284693,4.12257058,3146.2,3145.7,0.55]
[1731776285019,3.06899234,3146.3,3145.9,3.17873]
[1731776285204,3.06899234,3146.3,3146.0,0.55]
[1731776285786,3.06899234,3146.3,3145.8,3.72883]
[1731776286516,3.06899234,3146.3,3145.9,3.17868]
[1731776286823,0.01534341,3146.4,3146.0,3.72857]
[1731776287022,0.01534341,3146.4,3146.2,3.17843]
[1731776287182,0.01534341,3146.4,3146.2,2.90303]
[1731776287383,0.01534341,3146.4,3146.1,0.44277693]
[1731776287585,0.01534341,3146.4,3146.1,0.06356325]
[1731776287826,0.01534341,3146.4,3146.2,3.17843]
[1731776288708,0.01534341,3146.4,3146.3,3.72833]
[1731776290994,0.01534341,3146.4,3146.3,6.79188291]
[1731776291224,3.17735,3147.3,3146.7,3.17785]
[1731776291387,0.317735,3147.2,3146.7,3.17785]
[1731776291749,3.17663,3148.0,3146.5,3.17806]
[1731776291750,12.08134827,3148.3,3146.9,3.17773]
[1731776291883,3.81009366,3147.7,3147.1,3.72751]
[1731776292224,3.17664,3148.0,3147.2,3.17741]
[1731776292385,3.17664,3148.0,3147.4,3.17715]
[1731776292944,3.17709,3147.6,3146.9,0.55]
[1731776293088,3.17726,3147.4,3146.9,0.55]
[1731776293595,0.317709,3147.5,3146.9,0.55]
[1731776293596,0.317709,3147.5,3146.9,3.72771]
[1731776293797,3.17729,3147.4,3146.8,0.55]
[1731776294000,0.317709,3147.5,3146.4,0.48465659]
[1731776294001,0.317709,3147.5,3147.0,3.17761]
[1731776294532,3.494829,3147.5,3147.1,0.55]
[1731776294726,3.494829,3147.5,3146.6,3.17794]
[1731776294727,3.17742,3147.2,3146.6,3.17794]
[1731776294942,3.8444819,3147.4,3146.7,3.17791]
[1731776295346,3.06899234,3147.2,3146.5,3.17811]
[1731776295547,6.24651234,3147.2,3146.5,3.17811]
[1731776295761,3.17754,3147.1,3146.5,3.17811]
[1731776296050,3.17754,3147.1,3146.6,3.17801]
[1731776296351,3.06899234,3147.2,3146.6,3.17801]
[1731776296639,7.25551676,3147.2,3146.7,0.55]
[1731776297056,6.24680234,3146.9,3146.5,0.55]
[1731776297207,3.17793,3146.7,3146.4,0.48465659]
[1731776297405,3.17792,3146.8,3146.4,0.48465659]
[1731776297648,4.12037523,3146.8,3146.4,0.48465659]
[1731776298141,3.17794,3146.7,3146.4,0.48465659]
[1731776300409,3.17812,3146.6,3146.4,0.48465659]
[1731776301341,3.17813,3146.5,3146.4,0.48465659]
[1731776301717,3.17794,3146.7,3146.4,0.48465659]
[1731776302050,4.21465476,3146.7,3146.4,0.48465659]
[1731776302250,3.17806,3146.6,3146.4,0.48465659]
[1731776303827,4.21465476,3146.7,3146.4,0.48465659]
[1731776304351,3.17804,3146.6,3146.4,0.48465659]
[1731776304552,1.03671476,3146.7,3146.4,0.48465659]
[1731776305827,3.17783,3146.8,3146.4,0.48465659]
[1731776306022,6.24676234,3146.9,3146.4,0.48465659]
[1731776306228,3.17793,3146.7,3146.4,0.48465659]
[1731776308041,3.17813,3146.5,3146.4,0.48465659]
[1731776308365,3.813736,3146.5,3146.4,0.48465659]
[1731776308570,0.635606,3146.5,3146.4,0.48465659]
[1731776309968,3.17763,3147.0,3146.5,0.55]
[1731776310187,3.17746,3147.2,3146.6,3.17803]
[1731776310348,3.17746,3147.2,3146.5,0.55]
[1731776310349,3.17779,3146.9,3146.5,0.55]
[1731776311449,3.17752,3147.1,3146.5,0.55]
[1731776311638,3.17734,3147.3,3146.7,3.72792]
[1731776312050,3.17734,3147.3,3146.6,0.06355649]
[1731776312051,3.17753,3147.1,3146.6,0.55]
[1731776312981,3.17734,3147.3,3146.6,0.55]
[1731776313162,3.17744,3147.2,3146.6,3.72799]
[1731776313362,3.06899234,3147.5,3146.8,0.55]
[1731776313534,3.06899234,3147.5,3146.9,3.17772]
[1731776313535,3.17722,3147.4,3146.9,3.17772]
[1731776313739,3.17722,3147.4,3147.0,0.55]
[1731776314243,3.17722,3147.4,3146.9,0.55]
[1731776314442,3.17732,3147.3,3146.8,0.55]
[1731776314640,6.24611234,3147.5,3146.8,3.72783]
[1731776314877,3.17728,3147.4,3146.8,3.72783]
[1731776315590,3.17728,3147.4,3146.8,0.55]
[1731776315878,3.17728,3147.4,3147.0,0.55]
[1731776316082,3.17735,3147.3,3146.8,0.55]
[1731776316284,3.06899234,3147.5,3146.8,3.72781]
[1731776316579,3.06899234,3147.5,3147.0,0.55]
[1731776316774,3.80187623,3147.4,3146.9,0.55]
[1731776317750,3.17747,3147.2,3146.7,0.55]
[1731776318063,3.06899234,3147.2,3146.4,0.48465659]
[1731776318268,3.17767,3147.0,3146.4,0.48465659]
[1731776318642,3.17773,3146.9,3146.4,0.48465659]
[1731776320038,3.17767,3147.0,3146.4,0.48465659]
[1731776320239,3.17744,3147.2,3146.5,3.17804]
[1731776320478,6.35494,3147.2,3146.5,3.17804]
[1731776320665,3.17784,3146.8,3146.5,0.55]
[1731776320869,3.1777,3147.0,3146.5,0.55]
[1731776321096,6.3554,3147.0,3146.5,0.55]
[1731776321391,3.1777,3147.0,3146.5,0.55]
[1731776321799,6.24646234,3147.2,3146.5,3.72812]
[1731776321957,6.24646234,3147.2,3146.6,3.17801]
[1731776322290,9.42398234,3147.2,3146.6,3.17801]
[1731776322501,6.24646234,3147.2,3146.6,3.17801]
[1731776322791,9.42398234,3147.2,3146.6,3.17801]
[1731776322992,6.24646234,3147.2,3146.6,3.17801]
[1731776323783,6.24646234,3147.2,3146.5,0.55]
[1731776323957,3.17764,3147.0,3146.5,0.55]
[1731776324468,3.17769,3147.0,3146.5,0.55]
[1731776324675,0.62464623,3147.1,3146.5,0.55]
[1731776324676,3.17791,3146.8,3146.5,0.55]
[1731776324979,3.17766,3147.0,3146.5,0.55]
[1731776325184,6.24644234,3147.2,3146.7,0.55]
[1731776325185,3.17745,3147.2,3146.7,0.55]
[1731776325382,3.0,3147.4,3146.8,3.17783]
[1731776325602,3.17743,3147.2,3146.7,0.55]
[1731776325893,3.17734,3147.3,3146.8,3.17782]
[1731776326613,3.17734,3147.3,3146.7,0.55]
[1731776326905,3.17744,3147.2,3146.7,0.55]
[1731776327759,3.17734,3147.3,3146.7,0.55]
[1731776328006,3.17734,3147.3,3146.5,0.55]
[1731776328007,0.71019592,3147.2,3146.5,0.55]
[1731776328296,3.17743,3147.2,3146.7,0.55]
[1731776329057,7.10185923,3147.4,3146.7,0.55]
[1731776329480,3.17743,3147.2,3146.7,0.55]
[1731776331274,3.1776,3147.1,3146.6,0.55]
[1731776332156,3.1776,3147.1,3146.5,0.55]
[1731776332157,3.17789,3146.8,3146.5,0.55]
[1731776332360,3.17789,3146.8,3146.4,0.48465659]
[1731776332561,3.17813,3146.5,3146.4,0.48465659]
[1731776333578,6.35593,3146.7,3146.4,0.48465659]
[1731776335099,3.17793,3146.7,3146.4,0.48465659]
[1731776335258,3.17813,3146.5,3146.4,0.48465659]
[1731776335691,3.80275223,3146.6,3146.4,0.48465659]
[1731776337074,3.17813,3146.5,3146.4,0.48465659]
[1731776337726,6.24712234,3146.5,3146.4,0.48465659]
[1731776338926,6.24712234,3146.5,3145.5,3.24271557]
[1731776338927,3.17865,3146.0,3145.5,3.24271557]
[1731776339099,3.17865,3146.0,3145.5,0.32427156]
[1731776339420,3.17865,3146.0,3145.4,3.17922]
[1731776339620,3.17874,3145.9,3145.4,3.17922]
[1731776341327,3.17874,3145.9,3145.4,0.55]
[1731776341508,3.17874,3145.9,3145.3,0.55]
[1731776341713,3.17874,3145.9,3145.3,0.95471]
[1731776341714,3.17879,3145.9,3145.3,0.95471]
[1731776343112,3.17857,3146.1,3145.5,3.17913]
[1731776343496,3.17857,3146.1,3145.4,3.17918]
[1731776343497,3.17864,3146.0,3145.4,3.17918]
[1731776346427,3.17837,3146.3,3145.8,3.17882]
[1731776346926,3.17837,3146.3,3145.6,3.17903]
[1731776347518,3.17837,3146.3,3145.7,3.17891]
[1731776348138,3.17837,3146.3,3145.6,3.17903]
[1731776348304,3.17823,3146.4,3145.5,0.55]
[1731776348504,3.17874,3145.9,3145.5,0.55]
[1731776348712,3.17853,3146.1,3145.4,0.55]
[1731776349029,3.17853,3146.1,3145.4,3.72918]
[1731776349193,3.17875,3145.9,3145.4,0.55]
[1731776349537,3.17853,3146.1,3145.5,3.17913]
[1731776349695,3.17853,3146.1,3145.6,0.55]
[1731776350096,3.17843,3146.2,3145.6,3.72903]
[1731776350829,3.17854,3146.1,3145.6,3.72903]
[1731776351427,3.17835,3146.3,3145.6,4.419856]
[1731776351602,3.17835,3146.3,3145.6,3.72903]
[1731776351797,3.1786,3146.1,3145.5,0.55]
[1731776352932,6.35683,3146.3,3145.6,3.17903]
[1731776353092,3.17844,3146.2,3145.6,3.17903]
[1731776355539,3.17844,3146.2,3145.6,3.869851]
[1731776356235,3.17854,3146.1,3145.6,0.690821]
[1731776356391,3.17865,3146.0,3145.6,0.690821]
[1731776356737,3.17865,3146.0,3145.5,0.55]
[1731776358096,1.30944562,3145.9,3145.3,0.55]
[1731776358304,4.48824562,3145.9,3145.3,3.72931]
[1731776358498,3.17884,3145.8,3145.3,3.72931]
[1731776358921,3.17884,3145.8,3145.3,3.71572406]
[1731776359312,3.17896,3145.7,3145.3,0.53641406]
[1731776359542,3.17886,3145.8,3145.3,0.53641406]
[1731776359835,1.30944562,3145.9,3145.3,0.53641406]
[1731776360010,3.17897,3145.7,3145.3,0.53641406]
[1731776360600,7.66699562,3145.9,3145.3,0.53641406]
[1731776360936,4.48818562,3145.9,3145.3,0.53641406]
[1731776361840,4.48818562,3145.9,3145.3,3.71574406]
[1731776362034,4.48818562,3145.9,3145.3,0.53641406]
[1731776362426,4.48818562,3145.9,3145.3,3.71574406]
[1731776363301,7.66700562,3145.9,3145.3,3.71574406]
[1731776364006,4.48818562,3145.9,3145.3,3.71574406]
[1731776364202,4.48818562,3145.9,3144.2,0.01]
[1731776364203,1.30944562,3145.5,3144.2,0.01]
[1731776364542,4.48864562,3145.5,3144.9,3.17974]
[1731776365228,3.17925,3145.4,3144.9,3.17974]
[1731776365430,4.48864562,3145.5,3144.9,3.17974]
[1731776365631,5.25540618,3145.5,3144.8,0.55]
[1731776365830,0.76667656,3145.9,3144.3,3.18035]
[1731776365831,3.1796,3145.1,3144.6,3.18002]
[1731776366034,3.17966,3145.0,3144.4,3.18017]
[1731776366544,3.17966,3145.0,3143.6,0.01]
[1731776366545,1.30944562,3145.1,3144.1,3.18046]
[1731776366747,4.48946562,3144.7,3144.1,3.18046]
[1731776366905,4.48960562,3144.5,3144.0,3.18065]
[1731776367739,1.30944562,3144.5,3144.0,3.18065]
[1731776367944,1.30944562,3144.7,3144.2,3.18045]
[1731776368113,1.30944562,3144.7,3144.3,3.18031]
[1731776368313,1.30944562,3144.7,3144.2,3.18043]
[1731776368552,3.17958,3145.1,3144.3,0.55]
[1731776368553,1.30944562,3144.9,3144.3,0.55]
[1731776368757,2.07631918,3144.9,3144.4,3.18022]
[1731776369059,0.76687356,3144.9,3144.4,3.18022]
[1731776369201,3.17971,3145.0,3144.4,3.18022]
[1731776369405,3.0,3145.1,3144.5,3.18013]
[1731776369632,3.17955,3145.1,3144.5,3.18013]
[1731776369852,3.17967,3145.0,3144.3,3.73026]
[1731776370017,3.17967,3145.0,3144.4,3.18025]
[1731776370752,3.17947,3145.2,3144.5,3.18011]
[1731776370910,3.17956,3145.1,3144.5,3.18011]
[1731776372029,3.17935,3145.3,3144.8,0.55]
[1731776372421,3.17921,3145.5,3144.8,3.72983]
[1731776372620,1.24340082,3145.4,3144.8,3.72983]
[1731776373150,4.42265082,3145.4,3144.8,3.72983]
[1731776374258,6.35905,3145.2,3144.5,0.55]
[1731776374559,6.2553882,3145.0,3144.2,3.18041]
[1731776374718,0.62553882,3144.9,3144.2,3.18041]
[1731776374916,3.17989,3144.8,3144.2,3.18041]
[1731776375153,3.17997,3144.7,3144.1,3.18054]
[1731776376059,3.17986,3144.8,3144.2,3.18044]
[1731776377320,3.80528882,3144.9,3144.3,3.73034]
[1731776377524,0.75104072,3144.8,3144.3,3.73034]
[1731776377862,0.75104072,3144.8,3144.4,3.18025]
[1731776378059,0.62553882,3144.9,3144.3,3.73034]
[1731776378250,3.0,3145.2,3144.7,3.17986]
[1731776378461,3.0,3145.3,3144.8,3.72984]
[1731776378749,3.0,3145.4,3144.8,3.72984]
[1731776379859,3.17927,3145.4,3144.8,3.72984]
[1731776380436,3.17927,3145.4,3144.9,3.17972]
[1731776380635,3.17927,3145.4,3144.8,0.55]
[1731776380834,3.17945,3145.2,3144.4,3.18021]
[1731776381039,3.17945,3145.2,3144.7,0.55]
[1731776381853,3.0757182,3145.3,3144.7,0.55]
[1731776382241,3.0757182,3145.3,3144.8,3.17984]
[1731776382942,3.17947,3145.2,3144.7,0.55]
[1731776383262,3.0757182,3145.3,3144.7,3.72995]
[1731776383469,6.2551282,3145.3,3144.7,3.72995]
[1731776383764,3.86674584,3145.4,3144.7,3.72995]
[1731776383926,3.17936,3145.3,3144.7,3.72995]
[1731776384434,3.17935,3145.3,3144.8,3.17983]
[1731776384639,3.9459476,3145.3,3144.8,3.17983]
[1731776384870,3.9459476,3145.3,3144.6,3.72998]
[1731776384871,3.17944,3145.2,3144.6,3.72998]
[1731776385227,3.17966,3145.0,3144.5,0.55]
[1731776385378,0.317966,3144.9,3143.6,0.3277]
[1731776385540,3.0757182,3145.0,3144.3,3.18033]
[1731776385731,3.17982,3144.9,3144.3,3.18033]
[1731776386366,3.17956,3145.1,3144.6,3.18003]
[1731776386571,7.0216658,3145.3,3144.7,0.55]
[1731776386572,3.0,3145.2,3144.7,0.55]
[1731776386849,7.75565658,3145.2,3144.7,0.55]
[1731776387585,3.17955,3145.1,3144.7,0.55]
[1731776389082,4.57616658,3145.2,3144.7,0.55]
[1731776389283,7.75564658,3145.2,3144.7,0.55]
[1731776389690,7.75564658,3145.2,3144.7,0.56443627]
[1731776390161,3.0,3145.2,3144.7,3.19428627]
[1731776390358,3.0,3145.2,3144.7,0.56443627]
[1731776390681,3.0,3145.3,3144.8,3.17978]